Cogmind - Beta 14 @@@ ROGUE MODE // 2024.09.15 @ 21:52:13 Player: Faunarr Result: Destroyed by H-55 Commando with Gauss Rifle Performance ------------- Evolutions (2) 1000 Regions Visited (3) 600 Robots Destroyed (52) 260 Value Destroyed (1537) 1537 Prototype IDs (0) 0 Alien Tech Used (0) 0 Bonus (27) 27 TOTAL SCORE: 3424 Bonus ------- High Alert Combat Kills 27 Cogmind --------- Core Integrity 0/550 Matter 203/300 Energy 213/265 System Corruption 0% Temperature Cool (0) Movement Core (1600) Ox31 Location -8/Materials Parts ------- > --- POWER (1) -------- Improved Ion Engine > --- PROPULSION (2) --- (None) > --- UTILITY (6) ------ Huge Storage Unit Seismic Detector Targeting Computer > --- WEAPON (2) ------- Heavy Assault Rifle Heavy Assault Rifle > --- INVENTORY (25) --- Light Ion Engine Improved Ion Engine Improved Treads Armored Treads Armored Treads Compact Wheel Improved Heat Sink High-capacity Matter Pod (200) Signal Interpreter Seismic Detector High-powered Tractor Beam Spread Laser Heavy Assault Rifle Autogun Shotgun Improved Datajack Mace Katana Peak State ------------ > --- POWER ------------ Improved Ion Engine > --- PROPULSION ------- Armored Treads Wheel > --- UTILITY ---------- Cooling System Huge Storage Unit Advanced Terrain Scan Processor Seismic Detector Targeting Computer Targeting Computer > --- WEAPON ----------- Spread Laser Autogun > --- INVENTORY -------- Light Ion Engine Improved Ion Engine Improved Ion Engine Light Treads Light Treads Improved Treads Armored Treads Armored Treads Compact Wheel High-capacity Matter Pod Sensor Array Signal Interpreter Light Armor Plating Spread Laser Heavy Assault Rifle Heavy Assault Rifle Heavy Assault Rifle Heavy Assault Rifle Autogun Shotgun Proton Missile Launcher Rocket Launcher Mace Katana [Rating: 24] Favorites ----------- Power Ion Engine Engine Ion Engine Power Core Light Nuclear Core Propulsion Compact Wheel Treads Armored Treads Wheel Compact Wheel Utility Seismic Detector Device Seismic Detector Storage Huge Storage Unit Processor Targeting Computer Protection Light Armor Plating Weapon Assault Rifle Energy Gun Spread Laser Ballistic Gun Assault Rifle Launcher Proton Missile Launcher Build | -11 -10 -9 -8 ------- Run | Yrd Mat Mat Mat Slots Evolved 4 | . . 2 2 Power . | . . . . Propulsion . | . . . . Utility 4 | . . 2 2 Weapon . | . . . . Parts Attached 45 | 8 5 18 14 Power 7 | 1 1 4 1 Engine 6 | 1 1 3 1 Core 1 | . . 1 . Reactor . | . . . . Propulsion 8 | 2 2 2 2 Treads 4 | 1 1 1 1 Leg . | . . . . Wheel 4 | 1 1 1 1 Hover . | . . . . Flight . | . . . . Utility 16 | 2 1 7 6 Device 3 | 1 . . 2 Storage 2 | 1 1 . . Processor 4 | . . 2 2 Hackware . | . . . . Protection 7 | . . 5 2 Artifact . | . . . . Weapon 14 | 3 1 5 5 Energy Gun 1 | . . 1 . Energy Cannon . | . . . . Ballistic Gun 11 | 3 1 4 3 Ballistic Cannon . | . . . . Launcher 2 | . . . 2 Special Weapon . | . . . . Impact Weapon . | . . . . Slashing Weapon . | . . . . Piercing Weapon . | . . . . Special Melee Weapon . | . . . . Unidentified Prototypes . | . . . . Parts Lost 16 | . . 3 13 Power 2 | . . 1 1 Propulsion 3 | . . . 3 Utility 6 | . . 2 4 Weapon 5 | . . . 5 Highest Loss Streak 11 | . . 1 11 To Critical Strikes . | . . . . Average Slot Usage (%) 99 | . 100 99 97 Engine 8 | . 14 4 8 Core 2 | . . 6 . Treads 11 | . 14 11 8 Wheel 11 | . 14 11 8 Device 13 | . 14 11 17 Storage 11 | . 14 11 9 Processor 9 | . . 10 17 Protection 7 | . . 10 8 Energy Gun 3 | . . 2 8 Ballistic Gun 19 | . 28 19 8 Peak Build Rating 24 | 7 8 20 24 Average Rating 15 | 4 7 17 20 On Entrance 8 | . 7 8 18 Naked Turns . | . . . . Heaviest Build 99 | 15 90 99 99 Greatest Support 16 | 16 16 16 16 Greatest Overweight (x) 9 | . 5 6 9 Average Overweight (x) 5 | . 3 5 7 Largest Inventory Capacity 25 | 8 25 25 25 Average Capacity 23 | 6 20 25 25 Most Carried 25 | 5 15 25 25 Average Carried 19 | 2 10 23 24 Final Capacity 25 | 8 25 25 25 Final Carried 25 | 5 15 25 18 Class Distribution -------------------- 81% | Mutant 18% | Scavenger-Mutant Dominant Class ---------------- Mutant | -10/Materials Mutant | -9/Materials Mutant | -8/Materials Resources | -11 -10 -9 -8 ----------- Run | Yrd Mat Mat Mat Matter Collected 1549 | 269 246 883 151 Remotely . | . . . . Salvage Created 1793 | 108 233 1038 414 Parts 131 | 6 21 69 35 Haulers Intercepted . | . . . . Recyclers Shooed . | . . . . Parts Field Recycled . | . . . . Retrieved Matter . | . . . . Parts Self-Destructed . | . . . . Prevented . | . . . . Kills | -11 -10 -9 -8 ------- Run | Yrd Mat Mat Mat Combat Hostiles Destroyed 47 | . 12 24 11 Guns 46 | . 12 24 10 AOE 1 | . . . 1 Classes Destroyed 11 | 2 2 3 4 Worker 1 | . . 1 . Builder 1 | . . . 1 Tunneler 1 | 1 . . . Recycler 2 | 1 . 1 . Swarmer 15 | . 9 3 3 Grunt 16 | . 3 12 1 Duelist 1 | . . 1 . Sentry 11 | . . 8 3 Specialist 2 | . . . 2 Hunter 1 | . . . 1 Heavy 1 | . . . 1 Best Kill Streak 4 | 2 3 4 4 Combat Bots Only 4 | . 3 3 4 Max Kills in Single Turn 2 | 1 1 2 2 Gunslinging . | . . . . Exploded 1 | . . . 1 Melee . | . . . . Uniques/NPCs Destroyed . | . . . . Combat | -11 -10 -9 -8 -------- Run | Yrd Mat Mat Mat Hostile Shots Fired 281 | . 51 120 110 Missed 84 | . 17 33 34 Damage Taken 3162 | . 339 1221 1602 Core 796 | . 67 171 558 Absorbed by Shields . | . . . . Core Remaining (%) 76 | 100 73 57 . Volleys Fired 145 | 4 35 75 31 Largest 2 | 2 2 2 2 Hottest 88 | 40 40 88 88 Shots Fired 289 | 8 70 153 58 Gun 285 | 8 70 153 54 Cannon . | . . . . Launcher 4 | . . . 4 Special . | . . . . Kinetic 250 | 8 70 138 34 Thermal 35 | . . 15 20 Explosive 3 | . . . 3 Electromagnetic 1 | . . . 1 Robot Hit Streak 19 | 2 8 15 19 Robot Miss Streak 4 | 2 4 3 4 Penetration Max . | . . . . Secondary Targets 1 | . . 1 . Max Gunslinging Chain 1 | . . 1 . Shots Hit Robots 196 | 4 37 110 45 Core Hits 123 | 3 16 56 48 Critical Kills 2 | . 2 . . Critical Parts Destroyed 1 | . . 1 . Critical Strikes 3 | . 2 1 . Destroy 3 | . 2 1 . Melee Attacks . | . . . . Impact . | . . . . Slashing . | . . . . Piercing . | . . . . Sneak Attacks . | . . . . Combat Hostiles . | . . . . Follow-up Attacks . | . . . . Damage Inflicted 3064 | 53 466 1715 830 Guns 2818 | 53 466 1686 613 Cannons . | . . . . Explosions 217 | . . . 217 Melee . | . . . . Ramming 29 | . . 29 . Kinetic 2280 | 53 466 1441 320 Thermal 538 | . . 245 293 Explosive 191 | . . . 191 Electromagnetic 26 | . . . 26 Impact . | . . . . Slashing . | . . . . Piercing . | . . . . Highest Corruption 5 | . 2 5 . Average Corruption 4 | . 2 5 . Corruption Purged . | . . . . Corruption Blocked . | . . . . Effects 35 | . 6 29 . Message Errors 8 | . 1 7 . Matter Fused 7 | . 2 5 . Heat Flow Errors 3 | . . 3 . Energy Discharges 7 | . 2 5 . Parts Rejected 1 | . . 1 . Data Loss (minor) 5 | . 1 4 . Data Loss (major) 1 | . . 1 . Misfires 3 | . . 3 . Overload Shots . | . . . . Overflow Damage . | . . . . Projectiles . | . . . . Explosions . | . . . . Melee . | . . . . Knockbacks . | . . . . Impact . | . . . . Kinetic . | . . . . Secondary . | . . . . Self-Inflicted Damage 14 | . . 14 . Shots . | . . . . Rammed 3 | . 1 2 . Targets Rammed 3 | . 1 2 . Kicked . | . . . . Crushed . | . . . . Highest Temperature 415 | . . 415 9 Average Temperature 71 | . . 74 8 Received Heat Transfer 678 | . 66 441 171 Effects 2 | . . 2 . Shutdowns 1 | . . 1 . Damage (minor) 1 | . . 1 . Siege Activations . | . . . . Robots Corrupted . | . . . . Combat Hostiles . | . . . . Parts Fried . | . . . . Impact Corruptions . | . . . . Robots Melted . | . . . . Combat Hostiles . | . . . . Parts Melted . | . . . . Heat Transferred 675 | . . 305 370 Parts Sabotaged . | . . . . Parts Stolen . | . . . . Parts Stripped . | . . . . Power Chain Reactions . | . . . . Alert | -11 -10 -9 -8 ------- Run | Yrd Mat Mat Mat Peak Influence 475 | 10 328 475 396 Initial 165 | . 6 . 165 Average 186 | 2 108 220 235 Maximum Alert Level 2 | . 1 2 1 Low Security (%) 57 | 100 91 40 46 Level 1 37 | . 8 50 53 Level 2 4 | . . 9 . Level 3 . | . . . . Level 4 . | . . . . Level 5 . | . . . . High Security . | . . . . Max Security . | . . . . Squads Dispatched 7 | . 1 4 2 Investigation 1 | . . 1 . Extermination . | . . . . Reinforcement 6 | . 1 3 2 Assault . | . . . . Garrison . | . . . . Intercept . | . . . . Searches Triggered . | . . . . Construction Impeded . | . . . . Haulers Reinforced . | . . . . Active Scanning Responses . | . . . . Cargo Convoy Interrupts . | . . . . Stealth | -11 -10 -9 -8 --------- Run | Yrd Mat Mat Mat Distress Signals 8 | . 2 5 1 Communications Jammed . | . . . . Distress Signals . | . . . . Times Spotted 80 | . 21 42 17 Peak Tracking Total 5 | . 5 5 5 Tactical Retreats 6 | . . 5 1 Traps | -11 -10 -9 -8 ------- Run | Yrd Mat Mat Mat Traps Triggered 3 | . 2 1 . Indirectly . | . . . . Trap Hack Attempts . | . . . . Triggered . | . . . . Disarmed . | . . . . Reprogrammed . | . . . . Reused . | . . . . Traps Extracted . | . . . . Installed . | . . . . Triggered . | . . . . Machines | -11 -10 -9 -8 ---------- Run | Yrd Mat Mat Mat Machines Disabled 1 | . 1 . . Max in Single Turn 1 | . 1 . . Machines Repaired . | . . . . Machines Dismantled . | . . . . Machines Sabotaged . | . . . . Overloaded Fab Kills . | . . . . Hacking | -11 -10 -9 -8 --------- Run | Yrd Mat Mat Mat Machines Accessed 1 | . . 1 . Terminals 1 | . . 1 . Fabricators . | . . . . Repair Stations . | . . . . Recycling Units . | . . . . Scanalyzers . | . . . . Garrison Access . | . . . . Total Hacks 2 | . . 2 . Successful 1 | . . 1 . Failed 1 | . . 1 . Catastrophic 1 | . . 1 . Database Lockouts . | . . . . Manual 2 | . . 2 . Terminals 2 | . . 2 . Fabricators . | . . . . Repair Stations . | . . . . Recycling Units . | . . . . Scanalyzers . | . . . . Garrison Access . | . . . . Terminal Hacks . | . . . . Fabricator Hacks . | . . . . Repair Station Hacks . | . . . . Recycling Unit Hacks . | . . . . Scanalyzer . | . . . . Garrison Access Hacks . | . . . . Unauthorized Hacks 1 | . . 1 . Terminals 1 | . . 1 . Botnet 1 | . . 1 . Fabricators . | . . . . Repair Stations . | . . . . Recycling Units . | . . . . Scanalyzers . | . . . . Garrison Access . | . . . . Data Cores Recovered . | . . . . Used . | . . . . Hacking Detections 1 | . . 1 . Full Trace Events . | . . . . Feedback Events . | . . . . Feedback Blocked . | . . . . Robot Schematics Acquired . | . . . . Robots Built . | . . . . Authchips . | . . . . Time . | . . . . Total Robot Build Rating . | . . . . Part Schematics Acquired . | . . . . Parts Built . | . . . . Authchips . | . . . . Time . | . . . . Total Part Build Rating . | . . . . Parts Repaired . | . . . . Time . | . . . . Parts Recycled . | . . . . Recycled Matter . | . . . . Retrieved Matter . | . . . . Retrieved Components . | . . . . Parts Scanalyzed . | . . . . Part Schematics Acquired . | . . . . Parts Damaged . | . . . . Bothacking | -11 -10 -9 -8 ------------ Run | Yrd Mat Mat Mat Used RIF Installer . | . . . . Robots Hacked . | . . . . Non-combat . | . . . . Combat . | . . . . Robot Hacks Applied . | . . . . Relay Couplers Released . | . . . . Fabnet Peak Effective % . | . . . . Robots Rewired . | . . . . Allies Hacked . | . . . . Hacks Repelled . | . . . . Allies | -11 -10 -9 -8 -------- Run | Yrd Mat Mat Mat Total Allies . | . . . . Largest Group . | . . . . Highest-Rated Group . | . . . . Highest-Rated Ally . | . . . . Total Orders . | . . . . Ally Attacks . | . . . . Total Damage . | . . . . Kills . | . . . . Allies Corrupted . | . . . . Allies Melted . | . . . . Intel | -11 -10 -9 -8 ------- Run | Yrd Mat Mat Mat Robot Analysis Total . | . . . . Derelict Logs Recovered . | . . . . Drone Launches . | . . . . Drone Recoveries . | . . . . Exploration | -11 -10 -9 -8 ------------- Run | Yrd Mat Mat Mat Turns Passed 3627 | 72 1061 1652 842 Spaces Moved 1685 | 45 625 676 339 Core 3 | 3 . . . Treads . | . . . . Legs . | . . . . Wheels 1682 | 42 625 676 339 Hover . | . . . . Flight . | . . . . Fastest Speed 50 | 50 100 175 190 Average Speed 174 | 96 149 186 206 Slowest Speed 215 | 100 175 190 215 Overloaded Moves . | . . . . Propulsion Burnouts . | . . . . Robots Hopped . | . . . . Cave-ins Triggered . | . . . . Exploration Rate (%) 47 | 5 98 58 30 Regions Visited 3 Branch Regions . Pre-discovered Areas . | . . . . Known Exits Taken . | . . . . Unknown Exits Taken 3 | 1 1 1 . Scrap Searched . | . . . . Spaces Dug . | . . . . Terrain Destroyed 32 | . . . 32 Melee . | . . . . Projectile . | . . . . AOE 32 | . . . 32 Terrain Rammed . | . . . . Walls Destroyed . | . . . . Machines Disabled . | . . . . Actions | -11 -10 -9 -8 --------- Run | Yrd Mat Mat Mat Total 2105 | 61 684 923 437 Wait 170 | . 10 128 32 Move 1682 | 44 624 675 339 Hop . | . . . . Pick Up 38 | 5 7 14 12 Fast Attach 10 | 7 . 3 . Attach 18 | . . 5 13 Detach . | . . . . Swap 17 | 1 5 10 1 Drop 22 | . 2 11 9 Fire 145 | 4 35 75 31 Melee . | . . . . Ram 3 | . 1 2 . Kick . | . . . . Crush . | . . . . Escape Stasis . | . . . . Rewire . | . . . . Trap . | . . . . Miscellaneous . | . . . . Route ------- -11/Scrapyard -10/Materials (discovered 5 exits: *Mat x3 / [*Min x2]) -9/Materials (discovered 2 exits: [*Mat] / [*Min]) -8/Materials (discovered 1 exit: [*Fac]) History --------- Turn | Location | Event 12 | -11/Scrapyard | Discovered new exit (range 15) 73 | -11/Scrapyard | Entered Materials 307 | -10/Materials | Discovered new exit (range 5) 314 | -10/Materials | Build established: Mutant 514 | -10/Materials | Discovered new exit (range 15) 721 | -10/Materials | Discovered new exit (range 15) 1029 | -10/Materials | Discovered new exit (range 11) 1101 | -10/Materials | Discovered new exit (range 8) 1134 | -10/Materials | Entered another Materials area 1134 | -9/Materials | Evolved 2 slots: Utility x2 2214 | -9/Materials | Discovered new exit (range 11) 2725 | -9/Materials | Discovered new exit (range 16) 2786 | -9/Materials | Entered another Materials area 2786 | -8/Materials | Evolved 2 slots: Utility x2 2827 | -8/Materials | Build established: Scavenger-Mutant 3471 | -8/Materials | Build established: Mutant 3570 | -8/Materials | Discovered new exit (range 10) 3579 | -8/Materials | Core integrity fell below 50% 3601 | -8/Materials | Core integrity fell below 20% 3628 | -8/Materials | Garrison activated, responded to threat 3628 | -8/Materials | Destroyed by H-55 Commando with Gauss Rifle Last Messages --------------- 03617_ U-05 Engineer builds a Wall. 03619_ K-01 Serf collects debris. 03619_ Penetrated by Slug. 03620_ The unstable cave ceiling collapses. 03620_ U-05 Engineer lays Concrete. 03622_ K-01 Serf collects debris. 03622_ H-61 Shepherd destroyed. 03622_ K-01 Serf collects debris. 03622_ Penetrated by Slug. 03623_ U-05 Engineer lays Concrete. 03624_ R-06 Scavenger collects Wheel. 03624_ U-05 Engineer lays Concrete. 03625_ Penetrated by Slug. 03625_ U-05 Engineer builds a Wall. 03625_ K-01 Serf collects debris. 03628_ K-01 Serf calls for garrison support. 03628_ ALERT: Activating Garrison Access M001. 03628_ R-06 Scavenger collects Armor Integrity Analyzer. 03628_ Penetrated by Slug. Map ----- +----------------------------------------------------+ | | | | | ?????????????????????????????????????????????????? | | ?????????????????????????????????????????????????? | | ?????????????????????????????????????????????????? | | ?????????????????????????????????????????????????? | | ?????????????????????????????????????????????????? | | ?????????????????????????????????????????????????? | | ?????????????????????????????????????????????????? | | ?????????????????????????????????????????????????? | | ????????????????????????????? ???????????????????? | | ???????????????????????##### ????????????????? | | ???????????????????????# # #??????????????? | | ???????????????????????# < # #??????????????? | | ??????????????????????## # #??????????????? | | ?????????????????????## +??????????????? | | ####?????????????????# #??????????????? | | #?????????????????# # ???????????????? | | #?????????????????# ! ????????????????? | | #?????????????????? !%! ?????????????????? | | #?????????????????## ] !??????????????????? | | =########????######## == ???????????????????? | | [%# #????# ""% ![%##????????????????????? | | =*= #????# "" [#= u#?????????????????????? | | =#%= #????# "" #k *#?????????????????????? | | #[! #????# # @%#?????????????????????? | | # * #????# #%!!#?????????????????????? | | # #????# """ # %##????????????????????? | | ^####+###????# | """ # # ???????????????????? | | ######## """ # + ??????????????????? | | + # # ?????????????????? | | ##+#+################# # " "????????????????? | | # #?????????????? h*=#?"""""???????????????? | | # #?????????????? [%! ? """ "??????????????? | | # #?????????????? kr ?? ?? ??????????????? | | + #?????????????? r ?????????????????????? | | +########????????????? ?????????????????????? | | #???????????????? ?????????????????????? | | #???????????????? ##????????????????????? | | "" #????????????????## ??????????????????????? | | """ #?????????????????? ??????????????????????? | | """ #???????????????????????????????????????????? | | """ #???????????????????????????????????????????? | | "" #???????????????????????????????????????????? | | #???????????????????????????????????????????? | | #???????????????????????????????????????????? | | ######???????????????????????????????????????????? | | ###########??????????????????????????????????????? | | #??????????????????????????????????????? | | #??????????????????????????????????????? | +----------------------------------------------------+ Best States ------------- Heat Dissipation 53 Energy Generation 14 Energy Capacity 265 Matter Stores 300 Matter Capacity 300 Sight Range 16 Terrain Scan Density 10 Armor Coverage 150 Evasion (%) 40 Targeting Accuracy 10 Recoil Reduction 1 Item Schematics ----------------- None Robot Schematics ------------------ None Fabricated ------------ Nothing Alien Tech Used ----------------- None Achievements -------------- None Challenges ------------ None Game ------ Seed NavigationLaserDevice Manual? 0 Play Time 00:22:04 Cumulative 43.0 hours Start 2024.09.15 @ 21:31:51 End 2024.09.15 @ 21:52:13 Sessions 1 Manual Loads 0 Difficulty Rogue Special Mode None Game No. 71 Rogue 71 Adventurer 0 Explorer 0 Win Type - Total 0 Types 0/0/0/0/0/0/0/0/0 Lore% 29 Gallery% 39 Achievement% 35 Wizard Run 0 Options --------- Layout 1 ASCII 0 Keyboard 0 Movement Vi Keybinds 0 Fullscreen 2 Font 24/Smallcaps Map View 50x35 Zoom Use 0% Tactical HUD 1 Map Filters NONE Filters NONE Steam 1 RUN: 11ce0a2d-4f78-44d6-af8a-a2c9e66c24a7